fUSD/lending_fUSD_20250305
["ID","MTS","AMOUNT","RATE_DAILY","PERIOD"]
[355436415,1741149064642,-1376.21,0.00012332,2]
[355436416,1741149064651,-500.0,0.00012332,2]
[355436417,1741149064661,-5000.0,0.00012332,2]
[355436418,1741149064671,-1300.93,0.00012332,2]
[355436419,1741149064681,-4317.18,0.00012332,2]
[355436420,1741149064690,-500.0,0.00012332,2]
[355436421,1741149064700,-2991.76,0.00012332,2]
[355436422,1741149064711,-500.0,0.00012332,2]
[355436423,1741149064720,-500.0,0.00012332,2]
[355436424,1741149064730,-1040.42,0.00012332,2]
[355436425,1741149064740,-2878.21,0.00012332,2]
[355436426,1741149064749,-500.0,0.00012332,2]
[355436427,1741149064760,-523.70866268,0.00012332,2]
[355436428,1741149064770,-2211.81,0.00012332,2]
[355436429,1741149064780,-3188.17,0.00012332,2]
[355436430,1741149064790,-686.39,0.00012332,2]
[355436431,1741149064799,-1870.2,0.00012332,2]
[355436432,1741149064809,-582.04,0.00012332,2]
[355436433,1741149064819,-500.0,0.00012332,2]
[355436434,1741149064828,-500.0,0.00012332,2]
[355436435,1741149064837,-500.0,0.00012332,2]
[355436436,1741149064847,-1384.05,0.00012332,2]
[355436437,1741149064856,-500.0,0.00012332,2]
[355436438,1741149064865,-501.57970468,0.00012332,2]
[355436439,1741149064875,-500.0,0.00012332,2]
[355436440,1741149064885,-3315.14,0.00012332,2]
[355436441,1741149064894,-610.73,0.00012332,2]
[355436442,1741149064904,-2583.32,0.00012332,2]
[355436443,1741149064913,-500.0,0.00012332,2]
[355436444,1741149064922,-4216.58,0.00012332,2]
[355436445,1741149064931,-1147.18,0.00012332,2]
[355436446,1741149064940,-505.51652748,0.00012332,2]
[355436447,1741149064950,-683.92,0.00012332,2]
[355436448,1741149064959,-500.0,0.00012332,2]
[355436449,1741149064968,-1664.93,0.00012332,2]
[355436450,1741149064978,-1764.91,0.00012332,2]
[355436451,1741149064987,-500.0,0.00012332,2]
[355436452,1741149064996,-508.04633996,0.00012332,2]
[355436453,1741149065006,-4912.42,0.00012332,2]
[355436454,1741149065015,-500.0,0.00012332,2]
[355436455,1741149065025,-500.0,0.00012332,2]
[355436456,1741149065035,-1983.85,0.00012332,2]
[355436457,1741149065046,-500.0,0.00012332,2]
[355436458,1741149065056,-500.0,0.00012332,2]
[355436459,1741149065067,-2704.35,0.00012332,2]
[355436460,1741149065078,-500.0,0.00012332,2]
[355436461,1741149065089,-500.0,0.00012332,2]
[355436462,1741149065099,-930.2,0.00012332,2]
[355436463,1741149065110,-1210.97,0.00012332,2]
[355436464,1741149065119,-2681.47,0.00012332,2]
[355436465,1741149065130,-1150.03,0.00012332,2]
[355436466,1741149065140,-500.0,0.00012332,2]
[355436467,1741149065150,-2913.82,0.00012332,2]
[355436468,1741149065161,-882.87,0.00012332,2]
[355436469,1741149065172,-2017.32,0.00012333,2]
[355436470,1741149065183,-500.0,0.00012333,2]
[355436471,1741149065192,-150.0,0.00012335,2]
[355436472,1741149065200,-172.75,0.00012337,2]
[355436473,1741149065208,-1358.61740743,0.00012337,3]
[355436474,1741149065215,-150.0,0.00012338,2]
[355436475,1741149065222,-150.0,0.00012341,2]
[355436476,1741149065229,-366.4170613,0.00012342,2]
[355436477,1741149065238,-150.0,0.00012344,2]
[355436478,1741149065248,-213.10517898,0.00012353,2]
[355436479,1741149065258,-150.0,0.00012355,2]
[355436480,1741149065267,-150.0,0.0001237,2]
[355436481,1741149065277,-3569.53,0.00012373,2]
[355436482,1741149065286,-150.0,0.00012375,2]
[355436483,1741149065296,-150.0,0.00012381,2]
[355436484,1741149065305,-201.3447413,0.00012384,2]
[355436485,1741149065315,-163.15582369,0.00012384,2]
[355436486,1741149065324,-150.0,0.00012389,2]
[355436487,1741149065334,-150.0,0.00012393,2]
[355436488,1741149065347,-150.0,0.00012395,2]
[355436489,1741149065358,-1945.98346816,0.00012395,2]
[355436490,1741149065367,-150.0,0.00012395,2]
[355436491,1741149065377,-200.0,0.00012397,2]
[355436492,1741149065387,-1000.0,0.00012399,2]
[355436493,1741149065397,-150.0,0.00012412,2]
[355436494,1741149065407,-150.0,0.00012414,2]
[355436495,1741149065419,-150.0,0.00012416,2]
[355436496,1741149065430,-150.0,0.00012422,2]
[355436497,1741149065439,-150.0,0.00012426,2]
[355436498,1741149065448,-317.8342353,0.00012429,2]
[355436499,1741149065458,-200.0,0.00012429,2]
[355436500,1741149065468,-150.0,0.00012429,2]
[355436501,1741149065477,-150.0,0.00012437,2]
[355436502,1741149065487,-201.3447413,0.00012438,2]
[355436503,1741149065496,-150.0,0.0001244,2]
[355436504,1741149065508,-1000.0,0.00012441,2]
[355436505,1741149065517,-150.0,0.00012445,2]
[355436506,1741149065527,-150.0,0.00012446,2]
[355436507,1741149065536,-150.0,0.0001245,2]
[355436508,1741149065545,-150.0,0.00012452,2]
[355436509,1741149065555,-150.0,0.00012453,2]
[355436510,1741149065564,-150.0,0.00012456,2]
[355436511,1741149065574,-150.0,0.00012458,2]
[355436512,1741149065583,-1000.0,0.00012459,2]
[355436513,1741149065592,-150.0,0.00012461,2]
[355436514,1741149065601,-215.35,0.00012461,2]
[355436515,1741149065611,-163.15582369,0.00012466,2]
[355436516,1741149065620,-539682.07795718,0.0001247,2]
[355436517,1741149066154,-500.0,0.0001194,2]
[355436518,1741149066164,-156.236684,0.00012329,2]
[355436519,1741149066173,-1733.21350758,0.0001247,2]
[355436520,1741149066481,150.0,0.00010224,2]
[355436521,1741149066762,150.0,0.0001019,2]
[355436522,1741149066803,150.0,0.00010064,2]
[355436523,1741149066973,150.0,0.00010181,2]
[355436524,1741149067072,150.0,9.983e-05,2]
[355436525,1741149067321,-150.0,0.0001042,2]
[355436526,1741149067331,-150.0,0.00010447,2]
[355436527,1741149067346,-150.0,0.00010465,2]
[355436528,1741149067356,-22.65644773,0.00010613,2]
[355436529,1741149067368,-127.34355227,0.00010613,2]
[355436530,1741149067379,-150.0,0.00010644,2]
[355436531,1741149067390,-150.0,0.0001075,2]
[355436532,1741149067399,-150.0,0.00010756,2]
[355436533,1741149067409,-150.0,0.00010777,2]
[355436534,1741149067419,-150.0,0.00010789,2]
[355436535,1741149067429,-150.0,0.0001081,2]
[355436536,1741149067440,-150.0,0.00010914,2]
[355436537,1741149067449,-150.0,0.00010938,2]
[355436538,1741149067459,-150.0,0.00011083,2]
[355436539,1741149067468,-150.0,0.00011099,2]
[355436540,1741149067478,-150.0,0.00011119,2]
[355436541,1741149067488,-150.0,0.00011293,2]
[355436542,1741149067498,-150.0,0.00011305,2]
[355436543,1741149067508,-150.0,0.00011319,2]
[355436544,1741149067518,-150.0,0.00011339,2]
[355436545,1741149067528,-150.0,0.00011388,2]
[355436546,1741149067538,-150.0,0.00011407,2]
[355436547,1741149067547,-150.0,0.00011563,2]
[355436548,1741149067558,-150.0,0.00011621,2]
[355436549,1741149067567,-150.0,0.0001164,2]
[355436550,1741149067577,-150.0,0.00011686,2]
[355436551,1741149067586,-150.0,0.00011809,2]
[355436552,1741149067596,-150.0,0.0001181,2]
[355436553,1741149067606,-150.0,0.00011829,2]
[355436554,1741149067616,-150.0,0.0001184,2]
[355436555,1741149067626,-150.0,0.00011865,2]
[355436556,1741149067635,-1561.08,0.0001194,2]
[355436557,1741149067645,-501.15265856,0.00011949,2]
[355436558,1741149067654,-150.0,0.00011954,2]
[355436559,1741149067664,-150.0,0.00011968,2]
[355436560,1741149067675,-150.0,0.00012058,2]
[355436561,1741149067686,-150.0,0.00012134,2]
[355436562,1741149067696,-500.0,0.00012214,2]
[355436563,1741149067706,-1561.08,0.00012214,2]
[355436564,1741149067717,-150.0,0.00012228,2]
[355436565,1741149067727,-150.0,0.00012231,2]
[355436566,1741149067737,-150.0,0.00012246,2]
[355436567,1741149067748,-168.319359,0.00012329,2]
[355436568,1741149067758,-788.615433,0.00012329,2]
[355436569,1741149067769,-168.319359,0.00012329,2]
[355436570,1741149067780,-151.0,0.00012329,2]
[355436571,1741149067790,-168.31936,0.00012329,2]
[355436572,1741149067799,-150.0,0.00012411,2]
[355436573,1741149067808,-2794.57027817,0.0001247,2]
[355436574,1741149069387,-169.467324,0.00012329,2]
[355436575,1741149069396,-436.87622827,0.0001247,2]
[355436576,1741149070139,-777.94,0.00011241,2]
[355436577,1741149070149,-440.4,0.00011378,2]
[355436578,1741149070159,-6.01,0.00011378,2]
[355436579,1741149070170,-143.99,0.00011378,2]
[355436580,1741149070180,-500.0,0.0001194,2]
[355436581,1741149070189,-1682.95369429,0.00012052,2]
[355436582,1741149070199,-500.0,0.00012057,2]
[355436583,1741149070209,-1012.0,0.00012179,2]
[355436584,1741149070219,-788.615433,0.00012329,2]
[355436585,1741149070229,-680.42742065,0.00012329,2]
[355436586,1741149070241,-108.18801235,0.00012329,2]
[355436587,1741149070251,-788.615433,0.00012329,2]
[355436588,1741149070260,-788.615433,0.00012329,2]
[355436589,1741149070270,-456.6775092,0.00012329,2]
[355436590,1741149070281,-331.9379238,0.00012329,2]
[355436591,1741149070292,-339.41764102,0.00012331,2]
[355436592,1741149070315,-160.58235898,0.00012331,2]
[355436593,1741149070325,-4837.12434072,0.0001247,2]
[355436594,1741149070336,-1068.40519484,0.0001247,2]
[355436595,1741149717391,517.35,9.025e-05,2]
[355436598,1741150140831,1066.06744835,0.0001,7]
[355436607,1741150232043,-550.0,0.00011,2]
[355436608,1741150232053,-402.32999,0.00011007,2]
[355436609,1741150232099,-147.67001,0.00011007,2]
[355436610,1741150232109,-150.0,0.00011007,2]
[355436611,1741150232119,-165.18,0.0001103,2]
[355436612,1741150232129,-150.0,0.00011037,2]
[355436613,1741150232139,-0.47960624,0.00011051,2]
[355436614,1741150232261,-701.115,0.00011051,2]
[355436615,1741150232272,-298.40539376,0.00011051,2]
[355436616,1741150232282,-178.0,0.0001123,2]
[355436617,1741150232291,-517.35,0.00011289,2]
[355436618,1741150232300,-1527.27494234,0.0001181,2]
[355436619,1741150232310,-2739.65408657,0.00011839,2]
[355436620,1741150232319,-1000.0,0.0001184,2]
[355436621,1741150232329,-3966.59,0.0001184,2]
[355436622,1741150232344,-150.99,0.0001184,2]
[355436623,1741150232354,-1527.27494232,0.00011872,2]
[355436624,1741150232365,-282.8487695,0.000119,2]
[355436625,1741150232377,-255.97559429,0.000119,2]
[355436626,1741150232416,-592.3418551,0.000119,2]
[355436627,1741150232446,-1527.45052351,0.000119,2]
[355436645,1741150237980,-81.03734412,0.000119,2]
[355436646,1741150237989,-767.60285245,0.000119,2]
[355436647,1741150238016,-216.0172779,0.000119,2]
[355436648,1741150238025,-150.0,0.00011909,2]
[355436649,1741150238033,-78.63797591,0.0001191,2]
[355436650,1741150238067,-2924.36202409,0.0001191,2]
[355436651,1741150238076,-6027.38,0.0001191,2]
[355436652,1741150238085,-7756.6,0.0001191,2]
[355436653,1741150238094,-6548.61,0.0001191,2]
[355436654,1741150238103,-3637.5,0.0001191,2]
[355436655,1741150238112,-1636.71,0.0001191,2]
[355436656,1741150238121,-4663.08368744,0.0001191,2]
[355436657,1741150238132,-4588.94631256,0.0001191,2]
[355436658,1741150238142,-5139.19002332,0.0001191,2]
[355436659,1741150238179,-500.0,0.0001191,2]
[355436661,1741150240108,-9236.70997668,0.0001191,2]
[355436662,1741150240119,-7562.04,0.0001191,2]
[355436663,1741150240133,-3765.0952531,0.00011921,2]
[355436664,1741150240148,-1527.27494232,0.00011934,2]
[355436665,1741150240160,-983.62013009,0.00011934,2]
[355436666,1741150240174,-3202.13,0.00011937,2]
[355436667,1741150240187,-2744.51,0.00011937,2]
[355436668,1741150240201,-6220.28,0.00011937,2]
[355436669,1741150240214,-748.63142478,0.00011937,2]
[355436670,1741150240258,-1672.43857522,0.00011937,2]
[355436671,1741150240271,-104.36824664,0.00011937,2]
[355436672,1741150240287,-2790.0,0.00011937,2]
[355436674,1741150240565,-974.55526154,0.00011937,2]
[355436738,1741150243187,-428.95649182,0.00011937,2]
[355436739,1741150243198,-22.26423039,0.00011937,2]
[355436749,1741150245027,-569.04132258,0.00011937,2]
[355436757,1741150246070,-3483.49444703,0.00011937,2]
[355436758,1741150246079,-500.0,0.00011937,2]
[355436759,1741150246088,-1203.12,0.00011937,2]
[355436760,1741150246099,-908.49885405,0.00011937,2]
[355436761,1741150246363,-53.33114595,0.00011937,2]
[355436762,1741150246372,-2070.21209578,0.00011937,2]
[355436763,1741150505272,5002.99,0.00020011,120]
[355436764,1741150652558,5208.0,0.00017125,90]
[355436765,1741150966667,500.56,9.067e-05,2]
[355436766,1741150970482,-300.0,0.00011938,7]
[355436767,1741150972056,-200.0,0.00011938,7]
[355436769,1741151281476,1730.51069523,0.0001,2]
[355436780,1741151432436,-424.0,0.0001082,2]
[355436781,1741151432446,-150.0,0.00010899,2]
[355436782,1741151432455,-150.0,0.00010956,2]
[355436783,1741151432464,-188.24703105,0.00010978,2]
[355436784,1741151432564,-811.75296895,0.00010978,2]
[355436785,1741151432574,-424.0,0.0001099,2]
[355436786,1741151432583,-1079.922417,0.00010997,2]
[355436787,1741151432593,-1079.922417,0.00010997,2]
[355436788,1741151432602,-1224.791087,0.00010997,2]
[355436789,1741151432612,-1224.791087,0.00010997,2]
[355436790,1741151432622,-179.75,0.00010997,2]
[355436791,1741151432631,-178.0,0.00010998,2]
[355436792,1741151432640,-424.0,0.0001116,2]
[355436793,1741151432650,-424.0,0.0001132,2]
[355436794,1741151432661,-500.56,0.00011331,2]
[355436795,1741151432670,-154.341841,0.00011432,2]
[355436796,1741151432681,-424.0,0.0001149,2]
[355436797,1741151432690,-424.0,0.0001166,2]
[355436798,1741151432700,-424.0,0.0001183,2]
[355436799,1741151432709,-1087.48529158,0.00011836,2]
[355436801,1741151432719,-150.0,0.00011836,2]
[355436803,1741151432728,-12719.846,0.00011837,2]
[355436805,1741151432738,-10952.5235,0.00011837,2]
[355436807,1741151432747,-223.5287,0.00011837,2]
[355436809,1741151432756,-375.4816,0.00011837,2]
[355436810,1741151432766,-4868.053,0.00011837,2]
[355436811,1741151432776,-2191.72326927,0.00011837,2]
[355436812,1741151432785,-250.31239163,0.00011837,2]
[355436813,1741151432794,-321.14404674,0.00011837,2]
[355436814,1741151432805,-1172.7503,0.00011838,2]
[355436815,1741151432814,-360.27398738,0.00011839,2]
[355436816,1741151432823,-4041.0,0.00011843,2]
[355436817,1741151432833,-1087.4852915,0.00011895,2]
[355436818,1741151432843,-2191.72326921,0.00011896,2]
[355436819,1741151432853,-2919.3456997,0.000119,2]
[355436820,1741151432863,-918.04545477,0.000119,2]
[355436821,1741151432872,-150.0,0.00011902,2]
[355436822,1741151432882,-550.0,0.00011902,2]
[355436823,1741151432891,-3032.9564975,0.00011932,2]
[355436824,1741151432900,-1224.5814473,0.00011932,2]
[355436825,1741151432910,-5036.2404824,0.00011932,2]
[355436826,1741151432919,-949.6105696,0.00011932,2]
[355436827,1741151432928,-13992.0059319,0.00011932,2]
[355436828,1741151432938,-918.04545475,0.00011934,2]
[355436829,1741151432947,-817.31,0.00011935,2]
[355436830,1741151432957,-2625.3544083,0.00011936,2]
[355436831,1741151432966,-11121.2,0.00011936,2]
[355436832,1741151432975,-1499.16,0.00011936,2]
[355436833,1741151432984,-2909.71,0.00011936,2]
[355436834,1741151432993,-1625.5,0.00011936,2]
[355436835,1741151433002,-1098.65,0.00011936,2]
[355436836,1741151433012,-3554.34,0.00011936,2]
[355436837,1741151433022,-2778.67,0.00011936,2]
[355436838,1741151433032,-6706.44,0.00011936,2]
[355436839,1741151433041,-3726.82,0.00011936,2]
[355436840,1741151433051,-3068.71,0.00011936,2]
[355436841,1741151433061,-2630.16,0.00011936,2]
[355436842,1741151433071,-3018.89,0.00011936,2]
[355436843,1741151433081,-5961.1,0.00011936,2]
[355436844,1741151433091,-3907.44,0.00011936,2]
[355436845,1741151433104,-2320.19,0.00011936,2]
[355436846,1741151433113,-11401.79,0.00011936,2]
[355436847,1741151433123,-3780.89,0.00011936,2]
[355436848,1741151433132,-1794.21,0.00011936,2]
[355436849,1741151433143,-4118.8,0.00011936,2]
[355436850,1741151433153,-2745.9,0.00011936,2]
[355436851,1741151433162,-500.0,0.00011936,2]
[355436852,1741151433173,-2494.82,0.00011936,2]
[355436853,1741151433183,-500.0,0.00011936,2]
[355436854,1741151433193,-5708.62,0.00011936,2]
[355436855,1741151433202,-3905.02,0.00011936,2]
[355436856,1741151433212,-2845.4,0.00011936,2]
[355436857,1741151433222,-4185.81,0.00011936,2]
[355436858,1741151433231,-720.61,0.00011936,2]
[355436859,1741151433241,-1746.31,0.00011936,2]
[355436860,1741151433250,-500.0,0.00011936,2]
[355436861,1741151433261,-6744.43,0.00011936,2]
[355436862,1741151433270,-2274.42,0.00011936,2]
[355436863,1741151433279,-8554.88,0.00011936,2]
[355436864,1741151433289,-1191.94,0.00011936,2]
[355436865,1741151433299,-4399.2,0.00011936,2]
[355436866,1741151433308,-3700.8,0.00011936,2]
[355436867,1741151433318,-500.0,0.00011936,2]
[355436868,1741151433327,-5072.62,0.00011936,2]
[355436869,1741151433337,-2658.49,0.00011936,2]
[355436870,1741151433346,-3909.39,0.00011936,2]
[355436871,1741151433356,-2128.07,0.00011936,2]
[355436872,1741151433366,-16461.74,0.00011936,2]
[355436873,1741151433375,-36331.66,0.00011936,2]
[355436874,1741151433385,-5161.86,0.00011936,2]
[355436875,1741151433394,-2356.19,0.00011936,2]
[355436876,1741151433404,-3753.24,0.00011936,2]
[355436877,1741151433414,-519.06,0.00011936,2]
[355436878,1741151433423,-1476.84,0.00011936,2]
[355436879,1741151433433,-1124.1,0.00011936,2]
[355436880,1741151433443,-2361.27,0.00011936,2]
[355436881,1741151433452,-1012.0,0.00011936,2]
[355436882,1741151433461,-3930.0,0.00011936,2]
[355436883,1741151433472,-150.0,0.00011936,2]
[355436884,1741151433482,-527.41066705,0.00011937,2]
[355436885,1741151433491,-500.0,0.00011937,2]
[355436886,1741151433501,-500.0,0.00011937,2]
[355436887,1741151433512,-500.0,0.00011937,2]
[355436888,1741151433521,-882.42,0.00011937,2]
[355436889,1741151433532,-500.0,0.00011937,2]
[355436890,1741151433541,-1090.45,0.00011937,2]
[355436891,1741151433551,-2147.38,0.00011937,2]
[355436892,1741151433560,-1221.91,0.00011937,2]
[355436893,1741151433569,-627.28,0.00011937,2]
[355436894,1741151433579,-500.0,0.00011937,2]
[355436895,1741151433589,-500.0,0.00011937,2]
[355436896,1741151433864,-500.0,0.00011937,2]
[355436897,1741151433874,-1802.4,0.00011937,2]
[355436898,1741151433884,-500.0,0.00011937,2]
[355436899,1741151433894,-500.0,0.00011937,2]
[355436900,1741151433903,-527.93103529,0.00011937,2]
[355436901,1741151433913,-500.0,0.00011937,2]
[355436902,1741151433923,-947.54,0.00011937,2]
[355436903,1741151433932,-500.0,0.00011937,2]
[355436904,1741151433942,-500.0,0.00011937,2]
[355436905,1741151433951,-500.0,0.00011937,2]
[355436906,1741151433961,-961.15,0.00011937,2]
[355436907,1741151433971,-693.34,0.00011937,2]
[355436908,1741151433980,-1430.99,0.00011937,2]
[355436909,1741151433990,-1158.25,0.00011937,2]
[355436910,1741151434000,-1245.5,0.00011937,2]
[355436911,1741151434010,-500.0,0.00011937,2]
[355436912,1741151434020,-500.0,0.00011937,2]
[355436913,1741151434029,-500.0,0.00011937,2]
[355436914,1741151434039,-522.78,0.00011937,2]
[355436915,1741151434049,-500.0,0.00011937,2]
[355436916,1741151434059,-500.0,0.00011937,2]
[355436917,1741151434068,-500.0,0.00011937,2]
[355436918,1741151434079,-212.10074227,0.00011937,2]
[355436919,1741151434089,-778.3,0.00011937,2]
[355436920,1741151434101,-500.0,0.00011937,2]
[355436921,1741151434111,-500.0,0.00011937,2]
[355436922,1741151434120,-1076.28,0.00011937,2]
[355436923,1741151434130,-1788.0,0.00011937,2]
[355436924,1741151434141,-500.0,0.00011937,2]
[355436925,1741151434150,-1158.46,0.00011937,2]
[355436926,1741151434159,-500.0,0.00011937,2]
[355436927,1741151434169,-305.41239873,0.00011937,2]
[355436928,1741151434181,-1009.83,0.00011937,2]
[355436929,1741151434192,-500.0,0.00011937,2]
[355436930,1741151434201,-500.0,0.00011937,2]
[355436931,1741151434210,-500.0,0.00011937,2]
[355436932,1741151434220,-929.09,0.00011937,2]
[355436933,1741151434229,-500.0,0.00011937,2]
[355436934,1741151434239,-500.0,0.00011937,2]
[355436935,1741151434248,-500.0,0.00011937,2]
[355436936,1741151434258,-500.0,0.00011937,2]
[355436937,1741151434267,-814.07,0.00011937,2]
[355436938,1741151434277,-801.0,0.00011937,2]
[355436939,1741151434287,-500.0,0.00011937,2]
[355436940,1741151434297,-500.0,0.00011937,2]
[355436941,1741151434307,-1041.7,0.00011937,2]
[355436942,1741151434317,-922.27,0.00011937,2]
[355436943,1741151434327,-500.0,0.00011937,2]
[355436944,1741151434336,-583.67202526,0.00011937,2]
[355436945,1741151434346,-500.0,0.00011937,2]
[355436946,1741151434355,-690.04,0.00011937,2]
[355436947,1741151434365,-553.67490774,0.00011937,2]
[355436948,1741151434375,-1378.94,0.00011937,2]
[355436949,1741151434385,-500.0,0.00011937,2]
[355436950,1741151434395,-638.41,0.00011937,2]
[355436951,1741151434404,-500.0,0.00011937,2]
[355436952,1741151434414,-500.0,0.00011937,2]
[355436953,1741151434424,-926.3,0.00011937,2]
[355436954,1741151434434,-500.0,0.00011937,2]
[355436955,1741151434444,-500.0,0.00011937,2]
[355436956,1741151434454,-1613.29,0.00011937,2]
[355436957,1741151434464,-545.72,0.00011937,2]
[355436958,1741151434474,-500.0,0.00011937,2]
[355436959,1741151434484,-500.0,0.00011937,2]
[355436960,1741151434493,-500.0,0.00011937,2]
[355436961,1741151434503,-500.0,0.00011937,2]
[355436962,1741151434513,-811.22,0.00011937,2]
[355436963,1741151434523,-500.0,0.00011937,2]
[355436964,1741151434533,-500.0,0.00011937,2]
[355436965,1741151434543,-1132.34,0.00011937,2]
[355436966,1741151434553,-741.61,0.00011937,2]
[355436967,1741151434562,-500.0,0.00011937,2]
[355436968,1741151434572,-524.65,0.00011937,2]
[355436969,1741151434583,-500.0,0.00011937,2]
[355436970,1741151434593,-500.0,0.00011937,2]
[355436971,1741151434603,-500.0,0.00011937,2]
[355436972,1741151434613,-500.0,0.00011937,2]
[355436973,1741151434623,-908.37,0.00011937,2]
[355436974,1741151434633,-1093.81,0.00011937,2]
[355436975,1741151434643,-500.0,0.00011937,2]
[355436976,1741151434654,-500.0,0.00011937,2]
[355436977,1741151434664,-500.0,0.00011937,2]
[355436978,1741151434674,-500.0,0.00011937,2]
[355436979,1741151434684,-500.0,0.00011937,2]
[355436980,1741151434693,-500.0,0.00011937,2]
[355436981,1741151434704,-500.0,0.00011937,2]
[355436982,1741151434713,-1069.37,0.00011937,2]
[355436983,1741151434723,-500.0,0.00011937,2]
[355436984,1741151434733,-500.0,0.00011937,2]
[355436985,1741151434743,-500.0,0.00011937,2]
[355436986,1741151434753,-1023.04,0.00011937,2]
[355436987,1741151434763,-1037.25,0.00011937,2]
[355436988,1741151434773,-500.0,0.00011937,2]
[355436989,1741151434783,-500.0,0.00011937,2]
[355436990,1741151434793,-588.46,0.00011937,2]
[355436991,1741151434802,-500.0,0.00011937,2]
[355436992,1741151434812,-500.0,0.00011937,2]
[355436993,1741151434822,-549.32,0.00011937,2]
[355436994,1741151434831,-500.0,0.00011937,2]
[355436995,1741151434841,-500.0,0.00011937,2]
[355436996,1741151434851,-986.24,0.00011937,2]
[355436997,1741151434861,-500.0,0.00011937,2]
[355436998,1741151434871,-500.0,0.00011937,2]
[355436999,1741151434880,-815.08,0.00011937,2]
[355437000,1741151434891,-889.8,0.00011937,2]
[355437001,1741151434901,-500.0,0.00011937,2]
[355437002,1741151434910,-500.0,0.00011937,2]
[355437003,1741151434920,-500.0,0.00011937,2]
[355437004,1741151434931,-500.0,0.00011937,2]
[355437005,1741151434940,-1816.91,0.00011937,2]
[355437006,1741151434951,-2053.49,0.00011937,2]
[355437007,1741151434961,-505.87806374,0.00011937,2]
[355437008,1741151434971,-500.0,0.00011937,2]
[355437009,1741151434981,-500.0,0.00011937,2]
[355437010,1741151434992,-763.12,0.00011937,2]
[355437011,1741151435002,-1358.82,0.00011937,2]
[355437012,1741151435011,-500.0,0.00011937,2]
[355437013,1741151435021,-853.08,0.00011937,2]
[355437014,1741151435030,-546.73584199,0.00011937,2]
[355437015,1741151435040,-792.76,0.00011937,2]
[355437016,1741151435049,-620.02,0.00011937,2]
[355437017,1741151435059,-500.0,0.00011937,2]
[355437018,1741151435068,-500.0,0.00011937,2]
[355437019,1741151435078,-952.51,0.00011937,2]
[355437020,1741151435087,-500.0,0.00011937,2]
[355437021,1741151435099,-922.1,0.00011937,2]
[355437022,1741151435110,-828.26,0.00011937,2]
[355437023,1741151435119,-2864.68,0.00011937,2]
[355437024,1741151435130,-500.0,0.00011937,2]
[355437025,1741151435144,-5263.3,0.00011937,2]
[355437026,1741151435153,-313.201365,0.00011937,2]
[355437029,1741151438181,-1727.3,0.00011935,2]
[355437030,1741151438191,-316.488635,0.00011937,2]
[355437031,1741151438200,-494.11888005,0.00011937,2]
[355437032,1741151438245,-324.34111995,0.00011937,2]
[355437033,1741151438255,-500.0,0.00011937,2]
[355437034,1741151438264,-1698.91,0.00011937,2]
[355437035,1741151438274,-754.22,0.00011937,2]
[355437036,1741151438283,-500.0,0.00011937,2]
[355437037,1741151438293,-500.0,0.00011937,2]
[355437038,1741151438302,-28.95241,0.00011937,2]
[355437039,1741151438346,-471.04759,0.00011937,2]
[355437040,1741151438355,-500.0,0.00011937,2]